[Event "SRB-chT 1st League Women 2018"]
[Site "Zajecar"]
[Date "2018.09.03"]
[Round "4"]
[White "Petrovic, Danijela"]
[Black "Rapport, Jovana"]
[Result "0-1"]
[ECO "B13"]
[WhiteElo "1996"]
[BlackElo "2348"]
[Annotator "NA"]
[PlyCount "74"]
[EventDate "2018.08.31"]
[EventType "team-tourn"]
[EventCountry "SRB"]
[SourceTitle "playchess.com"]
[Source "ChessBase"]
[SourceQuality "1"]
[TimeControl "40/5400+30:1800+30"]

1. e4 {[%emt 0:00:00]} c6 {[%emt 0:00:00]} 2. d4 {[%emt 0:00:00]} d5 {[%emt 0:00:00]} 3. exd5 {[%emt 0:00:32]} cxd5 {[%emt 0:00:00]} 4. Nf3 {[%emt 0:00:52]} Nf6 {[%emt 0:00:00]} 5. Bb5+ {[%emt 0:01:21]} Bd7 {[%emt 0:04:15] B13: Caro-Kann: Exchange Variation and Panov-Botvinnik Attack} 6. Bxd7+ {[%emt 0:01:00]} (6. Bd3 Bg4 7. c3 Nc6 8. Bf4 a6 9. Nbd2 e6 10. Qe2 Be7 11. a4 Bh5 12. O-O O-O 13. b4 a5 14. b5 Na7 15. Qe3 Nc8 16. Ne5 {0-1 (50) Sonis,F (2241)-Gustafsson,J (2640) Porto Mannu 2015}) 6... Nbxd7 {[%emt 0:01:45]} 7. O-O {[%emt 0:01:31]} Qc7 {[%emt 0:00:09]} 8. Re1 {[%emt 0:02:19]} e6 {[%emt 0:00:20]} 9. Bg5 {[%emt 0:06:17]} Bd6 {[%emt 0:03:23]} 10. Nbd2 {[%emt 0:02:49]} b5 $146 {[%emt 0:10:11]} ({Predecessor:} 10... O-O 11. c3 b5 12. Qe2 Rab8 13. Ne5 b4 14. c4 dxc4 15. Qxc4 Rbc8 16. Qxc7 Rxc7 {0-1 (58) Prpic,I (2031)-Franciskovic,B (2263) Rijeka 2013}) 11. Rc1 {[%emt 0:06:48]} O-O {[%emt 0:00:59]} 12. Qe2 {[%emt 0:01:54]} b4 {[%emt 0:02:10]} 13. c4 {[%emt 0:04:10]} dxc4 {[%emt 0:10:23]} 14. Nxc4 {[%emt 0:02:24]} h6 {[%emt 0:00:54]} 15. Nce5 {[%emt 0:05:37]} Qb7 {[%emt 0:01:59]} 16. Bd2 {[%emt 0:07:37]} Nb6 {[%emt 0:01:23]} 17. Nc6 {[%emt 0:05:48]} Nbd5 {[%emt 0:02:31]} 18. Nfe5 {[%emt 0:02:05]} (18. Na5 $5 {[%cal Ra5b7]} Qe7 19. Qa6 $11) 18... a5 {[%emt 0:05:29]} 19. Qd3 {[%emt 0:03:15]} Rfc8 {[%emt 0:02:16]} 20. a3 {[%emt 0:09:45]} Ra6 {[%emt 0:06:51]} 21. axb4 {[%emt 0:12:11]} axb4 {[%emt 0:00:51]} ({Stronger than} 21... Raxc6 22. Nxc6 Rxc6 23. Rxc6 $11) 22. Ra1 {[%emt 0:02:52]} Raxc6 {[%emt 0:03:08]} 23. Nxc6 {[%emt 0:00:08]} Rxc6 {[%emt 0:00:09]} 24. Rec1 {[%emt 0:01:40]} Nf4 {[%emt 0:04:44]} 25. Bxf4 {[%emt 0:02:19]} Bxf4 {[%emt 0:00:29]} 26. Rc5 {[%emt 0:01:20]} Rxc5 {[%emt 0:05:52]} 27. dxc5 {[%emt 0:00:07]} Nd5 {[%emt 0:00:03]} 28. g3 {[%emt 0:01:06]} Be5 {[%emt 0:00:51]} 29. Qc2 {[%emt 0:02:29]} Qc6 $19 {[%emt 0:01:44]} 30. Ra5 {[%emt 0:02:53]} g6 {[%emt 0:01:01]} 31. b3 {[%emt 0:00:28]} Bc7 {[%emt 0:00:39]} 32. Ra4 {[%emt 0:01:42]} Bb6 {[%emt 0:05:59]} 33. Qb2 {[%emt 0:06:56]} Bxc5 {[%emt 0:00:29]} 34. Qa1 {[%emt 0:00:19]} Nc3 {[%emt 0:02:36]} 35. Ra8+ {[%emt 0:00:41]} Kg7 {[%emt 0:02:46]} 36. Qa5 {[%emt 0:00:21]} Qd5 {[%emt 0:01:54]} 37. h3 {[%emt 0:02:29]} Qd4 {[%emt 0:00:51]} 0-1

[Event "SRB-chT 1st League Women 2018"]
[Site "Zajecar"]
[Date "2018.09.03"]
[Round "4"]
[White "Matkovic, Simana"]
[Black "Vuckovic, Jovana"]
[Result "1-0"]
[ECO "A46"]
[WhiteElo "1937"]
[BlackElo "1992"]
[Annotator "NA"]
[PlyCount "85"]
[EventDate "2018.08.31"]
[EventType "team-tourn"]
[EventCountry "SRB"]
[SourceTitle "playchess.com"]
[Source "ChessBase"]
[SourceQuality "1"]
[TimeControl "40/5400+30:1800+30"]

1. d4 {[%emt 0:00:00]} Nf6 {[%emt 0:00:00]} 2. Nf3 {[%emt 0:00:13]} d6 {[%emt 0:00:00]} 3. Bf4 {[%emt 0:00:29]} g6 {[%emt 0:00:01]} 4. e3 {[%emt 0:00:22]} Bg7 {[%emt 0:00:07]} 5. Be2 {[%emt 0:00:32]} Nbd7 {[%emt 0:00:14]} 6. O-O {[%emt 0:01:17]} O-O {[%emt 0:00:20]} 7. h3 {[%emt 0:04:56]} Qe8 {[%emt 0:01:07]} 8. c4 {[%emt 0:06:06]} e5 {[%emt 0:01:27]} 9. Bh2 {[%emt 0:01:02]} Ne4 {[%emt 0:00:38]} 10. Qd3 {[%emt 0:08:22] A48: 1 d4 Nf6 2 Nf3 g6: Torre, London and Colle Systems} f5 {[%emt 0:16:10]} 11. Nc3 {[%emt 0:02:28]} Nxc3 {[%emt 0:02:24]} 12. Qxc3 {[%emt 0:06:53]} c5 $146 {[%emt 0:18:13]} ({Predecessor:} 12... b6 13. Rfe1 Bb7 14. b4 a5 15. c5 axb4 16. Qc4+ d5 17. Qxb4 Qe7 {1-0 (33) Palchun,G (2263)-Tseitlin,M (2399) St Petersburg 2013}) 13. dxe5 {[%emt 0:08:13]} dxe5 {[%emt 0:03:00]} 14. Qc2 {[%emt 0:00:19]} e4 {[%emt 0:02:49]} 15. Nd2 {[%emt 0:01:55]} Ne5 {[%emt 0:03:54]} 16. Rad1 {[%emt 0:00:28]} Be6 {[%emt 0:01:12]} 17. Nb1 {[%emt 0:00:42]} Qe7 {[%emt 0:07:39]} 18. b3 {[%emt 0:01:31]} Rad8 {[%emt 0:04:06]} 19. Nc3 {[%emt 0:00:50]} g5 {[%emt 0:08:53]} 20. Nd5 {[%emt 0:10:31]} Qf7 {[%emt 0:00:34]} 21. Rd2 {[%emt 0:03:03]} h5 {[%emt 0:03:45]} 22. Rfd1 {[%emt 0:00:53]} g4 $16 {[%emt 0:05:28]} (22... h4 $11 {keeps the balance.}) 23. hxg4 {[%emt 0:01:35]} fxg4 {[%emt 0:06:29]} 24. Bg3 {[%emt 0:14:40]} Bf5 {[%emt 0:08:03]} 25. Bh4 {[%emt 0:05:03]} Rde8 {[%emt 0:01:55]} 26. Nf4 {[%emt 0:01:17]} Bh6 {[%emt 0:01:16]} 27. g3 {[%emt 0:10:49]} Nf3+ {[%emt 0:01:12]} 28. Bxf3 {[%emt 0:01:27]} exf3 {[%emt 0:00:02]} 29. Qc3 {[%emt 0:01:55]} Bg7 {[%emt 0:00:25]} 30. Qc1 {[%emt 0:00:37]} Bf6 {[%emt 0:00:44]} 31. Bxf6 {[%emt 0:02:31]} Qxf6 {[%emt 0:00:01]} 32. Rd6 {[%emt 0:00:40]} Qf7 {[%emt 0:01:06]} 33. Rh6 {[%emt 0:01:39]} Rd8 {[%emt 0:01:41]} 34. Rxh5 {[%emt 0:00:50]} Qf6 {[%emt 0:00:38]} 35. Rd5 {[%emt 0:00:53]} Rxd5 {[%emt 0:00:47]} 36. Nxd5 {[%emt 0:00:38]} Qg7 {[%emt 0:00:33]} 37. e4 {[%emt 0:00:55]} Bxe4 {[%emt 0:00:53]} 38. Rg5 {[%emt 0:00:10]} Bg6 {[%emt 0:00:01]} 39. Rxg6 {[%emt 0:00:20]} Qxg6 {[%emt 0:00:06]} 40. Ne7+ {[%emt 0:00:00]} Kg7 {[%emt 0:00:00]} 41. Nxg6 {[%emt 0:00:20]} Kxg6 {[%emt 0:00:05]} 42. Qc2+ {[%emt 0:00:30]} Kg5 {[%emt 0:00:39]} 43. Qd2+ {[%emt 0:00:13]} 1-0

[Event "SRB-chT 1st League Women 2018"]
[Site "Zajecar"]
[Date "2018.09.03"]
[Round "4"]
[White "Vuckovic, Lidija"]
[Black "Gajcin, Jasmina"]
[Result "1/2-1/2"]
[ECO "A48"]
[WhiteElo "1834"]
[BlackElo "1910"]
[Annotator "NA"]
[PlyCount "22"]
[EventDate "2018.08.31"]
[EventType "team-tourn"]
[EventCountry "SRB"]
[SourceTitle "playchess.com"]
[Source "ChessBase"]
[SourceQuality "1"]
[TimeControl "40/5400+30:1800+30"]

1. d4 {[%emt 0:00:00]} Nf6 {[%emt 0:00:00]} 2. Nf3 {[%emt 0:00:00]} g6 {[%emt 0:00:00]} 3. Bf4 {[%emt 0:00:08]} Bg7 {[%emt 0:01:00]} 4. c3 {[%emt 0:00:35]} d6 {[%emt 0:01:01]} 5. e3 {[%emt 0:01:26]} O-O {[%emt 0:00:31]} 6. Bc4 {[%emt 0:01:28]} c5 {[%emt 0:01:18]} 7. dxc5 {[%emt 0:01:25]} dxc5 {[%emt 0:00:08]} 8. Qxd8 {[%emt 0:02:41]} Rxd8 {[%emt 0:00:06]} 9. Nbd2 {[%emt 0:03:12]} Nc6 {[%emt 0:01:32]} 10. Ne5 {[%emt 0:07:12]} Nxe5 {[%emt 0:02:02]} 11. Bxe5 {[%emt 0:00:06]} Bf5 {[%emt 0:01:57]} 1/2-1/2

[Event "SRB-chT 1st League Women 2018"]
[Site "Zajecar"]
[Date "2018.09.04"]
[Round "5"]
[White "Zarkovic, Mila"]
[Black "Chelushkina, Irina"]
[Result "1/2-1/2"]
[ECO "B12"]
[WhiteElo "2185"]
[BlackElo "2280"]
[Annotator "NA RC"]
[PlyCount "84"]
[EventDate "2018.08.31"]
[EventType "team-tourn"]
[EventCountry "SRB"]
[SourceTitle "playchess.com"]
[Source "ChessBase"]
[SourceQuality "1"]
[TimeControl "40/5400+30:1800+30"]

1. e4 {[%emt 0:00:00]} c6 {[%emt 0:00:00]} 2. d4 {[%emt 0:00:00]} Na6 {[%emt 0:00:00]} 3. Nc3 {[%emt 0:04:06]} Nc7 {[%emt 0:00:00]} 4. h4 {[%emt 0:07:38]} d5 {[%emt 0:00:35]} 5. e5 {[%emt 0:00:15]} h5 {[%emt 0:00:14]} 6. Be2 {[%emt 0:12:19]} g6 {[%emt 0:00:07]} 7. Be3 {[%emt 0:04:11]} Nh6 {[%emt 0:00:34]} 8. Qd2 {[%emt 0:00:47]} Nf5 {[%emt 0:00:58]} 9. Nf3 {[%emt 0:00:55]} Bh6 {[%emt 0:08:38]} 10. Bg5 {[%emt 0:05:10]} Ne6 {[%emt 0:02:36]} 11. O-O-O {[%emt 0:02:03]} Qa5 {[%emt 0:03:37]} 12. Kb1 {[%emt 0:02:57]} Bd7 {[%emt 0:00:50]} 13. Bxh6 {[%emt 0:08:32]} Nxh6 {[%emt 0:00:10]} 14. Ng5 {[%emt 0:00:26]} Nf5 {[%emt 0:05:27]} 15. Nxe6 {[%emt 0:02:36]} Bxe6 {[%emt 0:00:11]} 16. Bf3 {[%emt 0:17:37]} O-O-O {[%emt 0:00:49]} 17. Ne2 {[%emt 0:00:09]} Qxd2 {[%emt 0:02:03]} 18. Rxd2 {[%emt 0:00:01]} Ng7 {[%emt 0:02:55]} 19. Nf4 {[%emt 0:00:44]} Bf5 {[%emt 0:00:38]} 20. a4 {[%emt 0:01:40]} Kc7 {[%emt 0:01:06]} 21. b3 {[%emt 0:00:32]} a5 {[%emt 0:00:20]} 22. Kb2 {[%emt 0:00:11]} Ne6 {[%emt 0:03:12]} 23. Nxe6+ {[%emt 0:00:54]} Bxe6 {[%emt 0:00:37]} 24. Be2 {[%emt 0:05:54]} f6 {[%emt 0:03:29]} 25. f4 {[%emt 0:01:13]} fxe5 {[%emt 0:00:06]} 26. dxe5 {[%emt 0:01:10]} Bf5 {[%emt 0:00:34]} 27. Bf3 {[%emt 0:04:46]} e6 {[%emt 0:01:06]} 28. Be2 {[%emt 0:03:36]} Kb6 {[%emt 0:00:42]} 29. Rg1 {[%emt 0:02:34]} Kc5 {[%emt 0:01:14]} 30. c3 {[%emt 0:00:10]} Kb6 {[%emt 0:02:11]} 31. g3 {[%emt 0:02:25]} c5 {[%emt 0:00:43]} 32. Rgd1 {[%emt 0:01:27]} Rc8 {[%emt 0:00:37]} 33. Rg1 {[%emt 0:01:15]} Rc7 {[%emt 0:04:26]} 34. Rgd1 {[%emt 0:04:49]} Rhc8 {[%emt 0:00:42]} 35. c4 {[%emt 0:00:11]} d4 {[%emt 0:00:12]} 36. Bd3 {[%emt 0:01:12]} Rd7 {[%emt 0:02:29]} 37. Kc2 {[%emt 0:00:22]} Kc7 {[%emt 0:00:39]} 38. Rg1 {[%emt 0:01:09]} Rh8 {[%emt 0:00:11]} 39. Rh2 {[%emt 0:01:13]} Kd8 {[%emt 0:00:41]} 40. Kd2 {[%emt 0:00:00]} Rdh7 {[%emt 0:00:00]} 41. Re2 {[%emt 0:02:03]} Rd7 {[%emt 0:01:46]} 42. Rh2 $15 {[%emt 0:03:13]} Rdh7 1/2-1/2

[Event "SRB-chT 1st League Women 2018"]
[Site "Zajecar"]
[Date "2018.09.05"]
[Round "6"]
[White "Rakic, Teodora"]
[Black "Nestorovic, Katarina"]
[Result "1/2-1/2"]
[ECO "A48"]
[WhiteElo "2052"]
[BlackElo "1975"]
[Annotator "NA"]
[PlyCount "59"]
[EventDate "2018.08.31"]
[EventType "team-tourn"]
[EventCountry "SRB"]
[SourceTitle "playchess.com"]
[Source "ChessBase"]
[SourceQuality "1"]
[TimeControl "40/5400+30:1800+30"]

1. d4 {[%emt 0:00:00]} Nf6 {[%emt 0:00:00]} 2. Nf3 {[%emt 0:00:00]} g6 {[%emt 0:07:59]} 3. c4 {[%emt 0:03:14]} Bg7 {[%emt 0:00:09]} 4. Nc3 {[%emt 0:00:10]} d6 {[%emt 0:00:07]} 5. e4 {[%emt 0:00:46]} O-O {[%emt 0:01:11]} 6. h3 {[%emt 0:01:11]} e5 {[%emt 0:08:33]} 7. d5 {[%emt 0:06:20]} Na6 {[%emt 0:06:24]} 8. Be3 Nd7 9. g4 {[%emt 0:05:31]} f5 {[%emt 0:03:56]} 10. gxf5 {[%emt 0:04:36]} gxf5 {[%emt 0:00:07]} 11. exf5 {[%emt 0:09:24]} Ndc5 {[%emt 0:04:46]} 12. Bg5 {[%emt 0:16:05]} Qe8 {[%emt 0:01:17]} 13. Nh4 {[%emt 0:01:58]} e4 {[%emt 0:06:41]} 14. Rg1 {[%emt 0:14:09]} Kh8 {[%emt 0:19:29]} 15. Be3 {[%emt 0:06:49]} Bxf5 {[%emt 0:02:10]} 16. Nxf5 {[%emt 0:07:18]} Rxf5 {[%emt 0:00:08]} 17. Qg4 {[%emt 0:00:36]} Qf7 {[%emt 0:09:57]} 18. O-O-O {[%emt 0:07:18]} Nb4 {[%emt 0:00:36]} 19. Nxe4 {[%emt 0:06:04]} Nxe4 {[%emt 0:01:22]} 20. Qxe4 {[%emt 0:00:02]} Re8 {[%emt 0:01:00]} 21. Qg4 {[%emt 0:02:29]} Rxe3 {[%emt 0:20:39]} 22. fxe3 {[%emt 0:02:45]} Bh6 {[%emt 0:00:00]} 23. Kb1 {[%emt 0:01:12]} Bxe3 {[%emt 0:00:16]} 24. a3 {[%emt 0:01:31]} Bxg1 {[%emt 0:00:56]} 25. Qxg1 {[%emt 0:01:25]} Rf2 {[%emt 0:01:11]} 26. Qg5 {[%emt 0:01:29]} Rxf1 {[%emt 0:01:21]} 27. Qd8+ {[%emt 0:00:02]} Kg7 {[%emt 0:02:01]} 28. Qg5+ {[%emt 0:00:06]} Kh8 {[%emt 0:00:33]} 29. Qd8+ {[%emt 0:00:05]} Kg7 {[%emt 0:00:04]} 30. Qg5+ {[%emt 0:00:06]} 1/2-1/2

[Event "SRB-chT 1st League Women 2018"]
[Site "Zajecar"]
[Date "2018.09.05"]
[Round "6"]
[White "Tomin, Ksenija"]
[Black "Kovacevic, Radmila"]
[Result "1-0"]
[ECO "B59"]
[WhiteElo "2006"]
[BlackElo "2144"]
[Annotator "NA"]
[PlyCount "93"]
[EventDate "2018.08.31"]
[EventType "team-tourn"]
[EventCountry "SRB"]
[SourceTitle "playchess.com"]
[Source "ChessBase"]
[SourceQuality "1"]
[TimeControl "40/5400+30:1800+30"]

1. e4 {[%emt 0:00:00]} c5 {[%emt 0:00:00]} 2. Nf3 {[%emt 0:00:00]} d6 {[%emt 0:00:05]} 3. d4 {[%emt 0:00:28]} cxd4 {[%emt 0:01:12]} 4. Nxd4 {[%emt 0:00:07]} Nc6 {[%emt 0:01:34]} 5. Nc3 {[%emt 0:02:37]} Nf6 {[%emt 0:03:35]} 6. Be2 {[%emt 0:03:38]} e5 {[%emt 0:03:31]} 7. Nb3 {[%emt 0:03:51]} Be7 {[%emt 0:02:52]} 8. O-O {[%emt 0:01:12]} O-O {[%emt 0:00:14]} 9. f3 {[%emt 0:18:22]} Be6 {[%emt 0:01:09]} 10. Nd5 {[%emt 0:03:50]} Bxd5 {[%emt 0:25:50] B59: Classical Sicilian: 6 Be2 e5 7 Nb3} 11. exd5 {[%emt 0:00:18]} Nb4 {[%emt 0:00:11]} 12. c4 {[%emt 0:02:33]} Qb6+ {[%emt 0:01:56]} 13. Kh1 {[%emt 0:01:10]} a5 {[%emt 0:00:35]} 14. a3 $146 {[%emt 0:07:47]} ({Predecessor:} 14. Bd2 a4 15. Nc1 Na6 16. Rb1 Nc5 {0-1 (42) Valdes Rodriguez,E (1291)-Onder,E (2221) LSS email 2011}) 14... Na6 {[%emt 0:05:09]} 15. a4 {[%emt 0:00:48]} Nb4 {[%emt 0:02:03]} 16. Bd2 {[%emt 0:06:42]} Nh5 {[%emt 0:01:51]} 17. g3 {[%emt 0:04:47]} f5 {[%emt 0:01:56]} 18. f4 {[%emt 0:04:55]} Nf6 {[%emt 0:01:52]} 19. Bc3 {[%emt 0:02:43]} Ne4 {[%emt 0:13:12]} 20. fxe5 {[%emt 0:04:02]} dxe5 {[%emt 0:05:03]} 21. Bxe5 {[%emt 0:01:14]} Qh6 {[%emt 0:05:48]} 22. Nd4 {[%emt 0:09:27]} f4 {[%emt 0:04:12]} 23. Bxf4 {[%emt 0:02:01]} g5 {[%emt 0:03:02]} 24. Be5 {[%emt 0:04:34]} Rf2 {[%emt 0:01:43]} 25. h4 {[%emt 0:06:54]} Raf8 {[%emt 0:03:58]} 26. Qc1 {[%emt 0:02:46]} Bd6 {[%emt 0:03:37]} 27. Bxd6 {[%emt 0:01:28]} Qxd6 {[%emt 0:00:07]} 28. Rxf2 {[%emt 0:00:12]} Rxf2 {[%emt 0:00:17]} 29. Qe3 {[%emt 0:01:13]} Nxg3+ {[%emt 0:05:38]} 30. Kg1 {[%emt 0:00:14]} Ne4 {[%emt 0:01:04]} 31. Qh3 {[%emt 0:01:42]} Nc2 {[%emt 0:00:33]} 32. Nxc2 {[%emt 0:02:08]} Rxe2 {[%emt 0:00:23]} 33. Nd4 {[%emt 0:00:42]} Qc5 {[%emt 0:01:28]} 34. Qe6+ {[%emt 0:00:43]} Kg7 {[%emt 0:00:19]} 35. Qe5+ {[%emt 0:00:26]} Kg8 {[%emt 0:00:04]} 36. Qe6+ {[%emt 0:00:44]} Kg7 {[%emt 0:00:04]} 37. Qe5+ {[%emt 0:00:46]} Kg8 {[%emt 0:00:26]} 38. Rf1 {[%emt 0:00:50]} Qb6 {[%emt 0:01:13]} 39. Qe8+ {[%emt 0:00:37]} Kg7 {[%emt 0:00:05]} 40. Qf8+ {[%emt 0:00:00]} Kg6 {[%emt 0:00:00]} 41. Qf7+ {[%emt 0:04:02]} Kh6 {[%emt 0:00:39]} 42. c5 {[%emt 0:01:28]} Rg2+ {[%emt 0:04:05]} 43. Kxg2 $18 {[%emt 0:03:08]} Qxb2+ {[%emt 0:00:04]} 44. Rf2 {[%emt 0:01:08]} Qxd4 {[%emt 0:00:12]} 45. hxg5+ {[%emt 0:00:48]} Kxg5 {[%emt 0:00:13]} 46. Rf5+ {[%emt 0:00:22]} Kg4 {[%emt 0:00:13]} 47. Qh5# {[%emt 0:00:11]} 1-0

[Event "SRB-chT 1st League Women 2018"]
[Site "Zajecar"]
[Date "2018.09.05"]
[Round "6"]
[White "Milanovic, Maja"]
[Black "Stanimirovic, Marija"]
[Result "1/2-1/2"]
[ECO "B90"]
[WhiteElo "1940"]
[BlackElo "1901"]
[Annotator "NA RC"]
[PlyCount "105"]
[EventDate "2018.08.31"]
[EventType "team-tourn"]
[EventCountry "SRB"]
[SourceTitle "playchess.com"]
[Source "ChessBase"]
[SourceQuality "1"]
[TimeControl "40/5400+30:1800+30"]

1. e4 {[%emt 0:00:00]} c5 {[%emt 0:00:00]} 2. Nf3 {[%emt 0:00:00]} d6 {[%emt 0:00:00]} 3. d4 {[%emt 0:00:00]} cxd4 {[%emt 0:00:00]} 4. Nxd4 {[%emt 0:00:00]} Nf6 {[%emt 0:00:06]} 5. Nc3 {[%emt 0:00:00]} a6 {[%emt 0:00:07]} 6. h3 {[%emt 0:00:00]} e5 {[%emt 0:03:09]} 7. Nde2 {[%emt 0:01:14]} Be7 {[%emt 0:03:59]} 8. Bg5 {[%emt 0:04:55] B90: Sicilian Najdorf: Unusual White 6th moves, 6 Be3 Ng4 and 6 Be3 e5} (8. g4 O-O 9. Be3 Nbd7 10. Ng3 b5 11. g5 Ne8 12. h4 Bb7 13. Nd5 Bxd5 14. Qxd5 Nc7 15. Qd2 Ne6 {1-0 (42) Swiercz,D (2629)-Kempinski,R (2647) Poland 2015}) 8... O-O $146 {[%emt 0:06:29]} ({Predecessor:} 8... Nbd7 9. Ng3 Nf8 10. Bc4 Be6 11. Bxf6 Bxf6 12. Bd5 Qd7 13. Qf3 Rg8 14. O-O Ng6 15. Nf5 Bxf5 16. Qxf5 {1-0 (48) Vibbert,S (2240)-Kong,D (2051) Los Angeles 2012}) 9. Bxf6 {[%emt 0:00:31]} Bxf6 {[%emt 0:02:22]} 10. Nd5 {[%emt 0:00:15]} Bg5 {[%emt 0:03:38]} 11. Nec3 {[%emt 0:10:19]} Bh6 {[%emt 0:18:59]} 12. g4 {[%emt 0:17:13]} Bg5 {[%emt 0:08:09]} 13. Qf3 {[%emt 0:08:43]} Nc6 {[%emt 0:07:53]} 14. Bd3 {[%emt 0:07:43]} Nd4 {[%emt 0:00:54]} 15. Qg2 {[%emt 0:02:30]} b5 {[%emt 0:13:11]} 16. Ne2 {[%emt 0:05:57]} Nxe2 {[%emt 0:04:17]} 17. Kxe2 {[%emt 0:00:08]} Bb7 {[%emt 0:02:05]} 18. Ne3 {[%emt 0:24:38]} Bxe3 {[%emt 0:03:39]} 19. fxe3 {[%emt 0:00:12]} Qe7 {[%emt 0:12:25]} 20. Raf1 {[%emt 0:03:46]} b4 {[%emt 0:03:32]} 21. g5 {[%emt 0:03:11]} a5 {[%emt 0:01:10]} 22. h4 {[%emt 0:04:33]} Ba6 {[%emt 0:02:24]} 23. Bxa6 {[%emt 0:02:29]} Rxa6 {[%emt 0:00:02]} 24. h5 {[%emt 0:01:50]} Rc6 {[%emt 0:01:16]} 25. Kd2 {[%emt 0:00:43]} Qc7 {[%emt 0:01:11]} 26. Kd1 {[%emt 0:01:01]} Rc8 {[%emt 0:00:57]} 27. Rf2 {[%emt 0:00:04]} Qa7 {[%emt 0:00:49]} 28. Qf3 {[%emt 0:00:58]} a4 {[%emt 0:00:34]} 29. g6 {[%emt 0:00:37]} h6 {[%emt 0:00:24]} 30. gxf7+ {[%emt 0:00:30]} Kf8 {[%emt 0:00:06]} 31. Rd2 {[%emt 0:00:44]} b3 {[%emt 0:00:31]} 32. axb3 {[%emt 0:00:13]} axb3 {[%emt 0:00:08]} 33. c3 {[%emt 0:00:22]} Ra6 {[%emt 0:01:17]} 34. Ke2 {[%emt 0:00:33]} Qxf7 {[%emt 0:00:38]} 35. Qxf7+ {[%emt 0:00:56]} Kxf7 {[%emt 0:00:04]} 36. Rf1+ {[%emt 0:00:08]} Ke7 {[%emt 0:00:24]} 37. Kd3 {[%emt 0:00:24]} Rf8 {[%emt 0:00:55]} 38. Rg1 {[%emt 0:00:14]} Rf7 {[%emt 0:00:16]} 39. Rdg2 {[%emt 0:00:11]} Kf8 {[%emt 0:00:15]} 40. c4 {[%emt 0:00:00]} Ra4 {[%emt 0:00:00]} 41. Rc1 {[%emt 0:03:27]} Rc7 {[%emt 0:10:33]} 42. Rg6 {[%emt 0:01:35]} Ra2 {[%emt 0:00:56]} 43. Kc3 {[%emt 0:02:11]} Ra6 {[%emt 0:06:09]} 44. Kxb3 {[%emt 0:03:20]} Rb6+ {[%emt 0:00:16]} 45. Kc3 {[%emt 0:02:25]} Rcb7 {[%emt 0:00:17]} 46. Rc2 {[%emt 0:05:59]} (46. Kd3 $16) 46... Rb3+ {[%emt 0:02:23]} 47. Kd2 {[%emt 0:00:06]} Rxb2 $2 {[%emt 0:02:38]} (47... R7b6 $11) 48. Rxd6 {[%emt 0:00:38]} Rb1 {[%emt 0:05:46]} 49. Rd5 {[%emt 0:03:10]} R7b3 {[%emt 0:02:32]} 50. Rxe5 {[%emt 0:02:43]} (50. c5 $18 Rh1 51. c6 (51. Rxe5 Rh2+ 52. Kc1 Rh1+ 53. Kd2 Rh2+ 54. Kc1 Rh1+ 55. Kd2 $11) 51... Rh2+ 52. Kc1 Rh1+ 53. Rd1 Rxd1+ 54. Kxd1) 50... Rh1 {[%emt 0:00:25]} 51. Rf5+ {[%emt 0:04:10]} Ke7 {[%emt 0:00:09]} 52. Rf2 {[%emt 0:00:25]} Rxh5 {[%emt 0:00:46]} 53. c5 $11 {[%emt 0:00:52]} 1/2-1/2

[Event "SRB-chT 1st League Women 2018"]
[Site "Zajecar"]
[Date "2018.09.06"]
[Round "7"]
[White "Doluhanova, Evgeniya"]
[Black "Ambartsumova, Karina"]
[Result "1/2-1/2"]
[ECO "C47"]
[WhiteElo "2321"]
[BlackElo "2386"]
[Annotator "NA"]
[PlyCount "24"]
[EventDate "2018.08.31"]
[EventType "team-tourn"]
[EventCountry "SRB"]
[SourceTitle "playchess.com"]
[Source "ChessBase"]
[SourceQuality "1"]
[TimeControl "40/5400+30:1800+30"]

1. e4 {[%emt 0:00:00]} e5 {[%emt 0:00:04]} 2. Nf3 Nc6 {[%emt 0:00:24]} 3. Nc3 {[%emt 0:01:16]} Nf6 {[%emt 0:00:34]} 4. d4 {[%emt 0:00:00]} exd4 {[%emt 0:00:07]} 5. Nxd4 Bb4 {[%emt 0:00:36]} 6. Nxc6 {[%emt 0:00:23]} bxc6 {[%emt 0:00:09]} 7. Bd3 {[%emt 0:00:03]} d5 {[%emt 0:01:53]} 8. exd5 {[%emt 0:00:08]} cxd5 9. O-O {[%emt 0:00:16]} O-O {[%emt 0:00:09]} 10. h3 {[%emt 0:00:16]} c6 {[%emt 0:06:46]} 11. Qf3 {[%emt 0:08:42]} Bd6 {[%emt 0:10:58]} 12. Bg5 {[%emt 0:07:47]} Rb8 1/2-1/2